Cogmind - Beta 15 @@@ ROGUE MODE // 2025.10.11 @ 18:54:27 Player: NQH Result: Destroyed by Y-45 Defender with Heavy Assault Rifle Performance ------------- Evolutions (1) 500 Regions Visited (3) 600 Robots Destroyed (10) 50 Value Destroyed (291) 291 Prototype IDs (0) 0 Alien Tech Used (0) 0 Bonus (233) 233 TOTAL SCORE: 1674 Bonus ------- Pacifist 200 Follower Combat Kills 33 Cogmind --------- Core Integrity 0/400 Matter 295/300 Energy 100/100 System Corruption 0% Temperature Cool (0) Movement Core (100) Ox1 Location -9/Storage Parts ------- > --- POWER (1) -------- (None) > --- PROPULSION (2) --- (None) > --- UTILITY (4) ------ (None) > --- WEAPON (2) ------- Improved Light Cannon Mining Claw > --- INVENTORY (5) ---- (None) Peak State ------------ > --- POWER ------------ (None) > --- PROPULSION ------- (None) > --- UTILITY ---------- (None) > --- WEAPON ----------- Plasma Cutter Plasma Cutter > --- INVENTORY -------- (None) [Rating: 4] Favorites ----------- Power None Propulsion Flight Unit Flight Unit Flight Unit Utility None Weapon Improved Light Cannon Ballistic Cannon Improved Light Cannon Special Weapon Plasma Cutter Slashing Weapon Mining Claw Build | -11 -10 -9 -9 ------- Run | Yrd Mat Mat Sto Slots Evolved 2 | . . 2 . Power . | . . . . Propulsion . | . . . . Utility 2 | . . 2 . Weapon . | . . . . Parts Attached 5 | . . . 5 Power . | . . . . Engine . | . . . . Core . | . . . . Reactor . | . . . . Propulsion 1 | . . . 1 Treads . | . . . . Leg . | . . . . Wheel . | . . . . Hover . | . . . . Flight 1 | . . . 1 Utility . | . . . . Device . | . . . . Storage . | . . . . Processor . | . . . . Hackware . | . . . . Protection . | . . . . Artifact . | . . . . Weapon 4 | . . . 4 Energy Gun . | . . . . Energy Cannon . | . . . . Ballistic Gun . | . . . . Ballistic Cannon 1 | . . . 1 Launcher . | . . . . Special Weapon 2 | . . . 2 Impact Weapon . | . . . . Slashing Weapon 1 | . . . 1 Piercing Weapon . | . . . . Special Melee Weapon . | . . . . Unidentified Prototypes . | . . . . Parts Lost 3 | . . . 3 Power . | . . . . Propulsion 1 | . . . 1 Utility . | . . . . Weapon 2 | . . . 2 Highest Loss Streak 2 | . . . 2 To Critical Strikes . | . . . . Average Backups . | . . . . Power . | . . . . Propulsion . | . . . . Utility . | . . . . Weapon . | . . . . Tool/Special . | . . . . Unused Backups . | . . . . Power . | . . . . Propulsion . | . . . . Utility . | . . . . Weapon . | . . . . Tool/Special . | . . . . Average Slot Usage (%) 9 | . . . 12 Flight 2 | . . . 3 Ballistic Cannon 4 | . . . 6 Slashing Weapon 1 | . . . 1 Peak Build Rating 4 | . . . 4 Average Rating 1 | . . . 1 On Entrance . | . . . . Naked Turns 124 | . 56 5 63 Heaviest Build 6 | . . . 6 Greatest Support 4 | 3 3 3 4 Greatest Overweight (x) 1 | . . . 1 Average Overweight (x) . | . . . . Largest Inventory Capacity 5 | 5 5 5 5 Average Capacity 5 | 5 5 5 5 Most Carried 2 | . . . 2 Average Carried . | . . . . Final Capacity 5 | 5 5 5 5 Final Carried . | . . . . Class Distribution -------------------- 80% | Mutant 20% | Commander-Mutant Dominant Class ---------------- Mutant | -10/Materials Mutant | -9/Materials Mutant | -9/Storage Resources | -11 -10 -9 -9 ----------- Run | Yrd Mat Mat Sto Matter Collected 297 | . . . 297 Remotely . | . . . . Salvage Created 232 | . . . 232 Parts 17 | . . . 17 Haulers Intercepted . | . . . . Recyclers Shooed . | . . . . Parts Field Recycled . | . . . . Retrieved Matter . | . . . . Parts Self-Destructed . | . . . . Prevented . | . . . . Kills | -11 -10 -9 -9 ------- Run | Yrd Mat Mat Sto Combat Hostiles Destroyed 10 | . . . 10 Cannons 10 | . . . 10 Classes Destroyed 4 | . . . 4 Swarmer 3 | . . . 3 Grunt 5 | . . . 5 Brawler 1 | . . . 1 Sentry 1 | . . . 1 Best Kill Streak 9 | . . . 9 Combat Bots Only 9 | . . . 9 Max Kills in Single Turn 1 | . . . 1 Gunslinging . | . . . . Exploded . | . . . . Melee . | . . . . Uniques/NPCs Destroyed . | . . . . Combat | -11 -10 -9 -9 -------- Run | Yrd Mat Mat Sto Hostile Shots Fired 75 | . 7 . 68 Missed 25 | . 3 . 22 Hits 50 | . 4 . 46 Melee 1 | . . . 1 Projectile 49 | . 4 . 45 Critical Strikes 1 | . 1 . . Damage Taken 655 | 2 56 . 597 Core 467 | 2 56 . 409 Absorbed by Shields . | . . . . Core Remaining (%) 87 | 99 76 . . Volleys Fired 26 | . . . 26 Largest 2 | . . . 2 Hottest 40 | . . . 40 Shots Fired 27 | . . . 27 Gun . | . . . . Cannon 23 | . . . 23 Launcher . | . . . . Special 4 | . . . 4 Kinetic 23 | . . . 23 Thermal 4 | . . . 4 Explosive . | . . . . Electromagnetic . | . . . . Robot Hit Streak 17 | . . . 17 Robot Miss Streak 1 | . . . 1 Penetration Max . | . . . . Secondary Targets . | . . . . Shots Hit Robots 25 | . . . 25 Core Hits 12 | . . . 12 Critical Kills . | . . . . Critical Parts Destroyed . | . . . . Critical Strikes . | . . . . Melee Attacks 1 | . . . 1 Impact . | . . . . Slashing 1 | . . . 1 Piercing . | . . . . Sneak Attacks 1 | . . . 1 Combat Hostiles . | . . . . Follow-up Attacks . | . . . . Damage Inflicted 535 | 4 . . 531 Guns . | . . . . Cannons 437 | . . . 437 Explosions . | . . . . Melee 52 | . . . 52 Ramming 11 | 4 . . 7 Kinetic 437 | . . . 437 Thermal 35 | . . . 35 Explosive . | . . . . Electromagnetic . | . . . . Impact . | . . . . Slashing 52 | . . . 52 Piercing . | . . . . Highest Corruption 8 | . 8 . . Average Corruption 6 | . 6 . . Corruption Purged . | . . . . Corruption Blocked . | . . . . Effects 1 | . 1 . . Message Errors 1 | . 1 . . Overload Shots . | . . . . Overflow Damage . | . . . . Projectiles . | . . . . Explosions . | . . . . Melee . | . . . . Knockbacks 4 | . . . 4 Impact . | . . . . Kinetic 4 | . . . 4 Secondary . | . . . . Self-Inflicted Damage 5 | 2 . . 3 Shots . | . . . . Rammed 6 | 2 . . 4 Targets Rammed 6 | 2 . . 4 Kicked . | . . . . Crushed . | . . . . Highest Temperature 2 | . 2 . . Average Temperature 2 | . 2 . . Received Heat Transfer 219 | . 51 . 168 Siege Activations . | . . . . Martial Activations . | . . . . Shielding Activations . | . . . . Robots Disrupted . | . . . . Combat Hostiles . | . . . . Robots Corrupted . | . . . . Combat Hostiles . | . . . . Parts Fried . | . . . . Impact Corruptions . | . . . . Robots Melted . | . . . . Combat Hostiles . | . . . . Parts Melted . | . . . . Heat Transferred 111 | . . . 111 Parts Sabotaged . | . . . . Parts Stolen . | . . . . Parts Stripped . | . . . . Power Chain Reactions . | . . . . Alert | -11 -10 -9 -9 ------- Run | Yrd Mat Mat Sto Maximum Alert Level 1 | . . . 1 Low Security (%) 78 | 100 100 100 72 Level 1 21 | . . . 27 Level 2 . | . . . . Level 3 . | . . . . Level 4 . | . . . . Level 5 . | . . . . High Security . | . . . . Max Security . | . . . . Peak Influence 235 | . 15 1 235 Initial 1 | . . 1 . Average 85 | . 1 1 113 Influence Increases 361 | . 15 . 346 Destroy 0b10 Robot/C 220 | . . . 220 Destroy Leader 60 | . . . 60 Allied During Kill 6 | . . . 6 Disable Machine 15 | . . . 15 Partial Spotted 30 | . . . 30 Lose Combat Pursuer 30 | . 15 . 15 Influence Decreases 230 | . 10 4 216 Entered New Map 5 | . . 4 1 Time Decay 90 | . 10 . 80 Lost Part 15 | . . . 15 Lost Ally 120 | . . . 120 Squads Dispatched 5 | . 1 . 4 Investigation 1 | . 1 . . Extermination . | . . . . Reinforcement 4 | . . . 4 Assault . | . . . . Garrison . | . . . . Intercept . | . . . . Searches Triggered . | . . . . Construction Impeded . | . . . . Haulers Reinforced . | . . . . Active Scanning Responses . | . . . . Cargo Convoy Interrupts . | . . . . Stealth | -11 -10 -9 -9 --------- Run | Yrd Mat Mat Sto Distress Signals 2 | . 1 . 1 Communications Jammed . | . . . . Distress Signals . | . . . . Times Spotted 23 | . 4 . 19 Peak Tracking Total 8 | . 4 . 8 Tactical Retreats 2 | . 1 . 1 Traps | -11 -10 -9 -9 ------- Run | Yrd Mat Mat Sto Traps Triggered 7 | . 6 . 1 Indirectly . | . . . . Trap Hack Attempts . | . . . . Triggered . | . . . . Disarmed . | . . . . Reprogrammed . | . . . . Reused . | . . . . Traps Extracted . | . . . . Installed . | . . . . Triggered . | . . . . Machines | -11 -10 -9 -9 ---------- Run | Yrd Mat Mat Sto Machines Disabled 1 | . . . 1 Max in Single Turn 1 | . . . 1 Machines Repaired . | . . . . Machines Dismantled . | . . . . Machines Sabotaged . | . . . . Overloaded Fab Kills . | . . . . Hacking | -11 -10 -9 -9 --------- Run | Yrd Mat Mat Sto Machines Accessed 1 | . . . 1 Terminals 1 | . . . 1 Fabricators . | . . . . Repair Stations . | . . . . Recycling Units . | . . . . Scanalyzers . | . . . . Garrison Access . | . . . . Total Hacks 1 | . . . 1 Successful 1 | . . . 1 Failed . | . . . . Catastrophic . | . . . . Database Lockouts . | . . . . Manual 1 | . . . 1 Terminals 1 | . . . 1 Fabricators . | . . . . Repair Stations . | . . . . Recycling Units . | . . . . Scanalyzers . | . . . . Garrison Access . | . . . . Terminal Hacks 1 | . . . 1 Record 1 | . . . 1 Fabricator Hacks . | . . . . Repair Station Hacks . | . . . . Recycling Unit Hacks . | . . . . Scanalyzer . | . . . . Garrison Access Hacks . | . . . . Unauthorized Hacks . | . . . . Terminals . | . . . . Fabricators . | . . . . Repair Stations . | . . . . Recycling Units . | . . . . Scanalyzers . | . . . . Garrison Access . | . . . . Data Cores Recovered . | . . . . Used . | . . . . Hacking Detections 1 | . . . 1 Full Trace Events . | . . . . Feedback Events . | . . . . Feedback Blocked . | . . . . Robot Schematics Acquired . | . . . . Robots Built . | . . . . Authchips . | . . . . Time . | . . . . Total Robot Build Rating . | . . . . Part Schematics Acquired . | . . . . Parts Built . | . . . . Authchips . | . . . . Time . | . . . . Total Part Build Rating . | . . . . Parts Repaired . | . . . . Time . | . . . . Parts Recycled . | . . . . Recycled Matter . | . . . . Retrieved Matter . | . . . . Retrieved Components . | . . . . Parts Scanalyzed . | . . . . Part Schematics Acquired . | . . . . Parts Damaged . | . . . . Bothacking | -11 -10 -9 -9 ------------ Run | Yrd Mat Mat Sto Used RIF Installer . | . . . . Robots Hacked . | . . . . Non-combat . | . . . . Combat . | . . . . Robot Hacks Applied . | . . . . Relay Couplers Released . | . . . . Fabnet Peak Effective % . | . . . . Robots Rewired . | . . . . Allies Hacked . | . . . . Hacks Repelled . | . . . . Allies | -11 -10 -9 -9 -------- Run | Yrd Mat Mat Sto Total Allies 10 | . . . 10 Largest Group 10 | . . . 10 Highest-Rated Group 88 | . . . 88 Highest-Rated Ally 16 | . . . 16 Total Orders . | . . . . Ally Attacks 17 | . . . 17 Total Damage 196 | . . . 196 Kills 1 | . . . 1 Allies Corrupted . | . . . . Allies Melted . | . . . . Intel | -11 -10 -9 -9 ------- Run | Yrd Mat Mat Sto Active Infowar (turns) . | . . . . Robot Analysis Total . | . . . . Derelict Logs Recovered . | . . . . Drone Launches . | . . . . Drone Recoveries . | . . . . Exploration | -11 -10 -9 -9 ------------- Run | Yrd Mat Mat Sto Turns Passed 290 | 11 56 5 218 Spaces Moved 437 | 18 112 9 298 Core 269 | 18 112 9 130 Treads . | . . . . Legs . | . . . . Wheels . | . . . . Hover . | . . . . Flight 168 | . . . 168 Fastest Speed 40 | 50 50 50 40 Average Speed 47 | 50 50 50 46 Slowest Speed 100 | 50 50 50 100 Overloaded Moves . | . . . . Propulsion Burnouts . | . . . . Robots Hopped 7 | . . . 7 Potential Cave-ins . | . . . . Cave-ins Triggered . | . . . . Exploration Rate (%) 18 | 3 24 2 43 Regions Visited 3 Branch Regions 1 Pre-discovered Areas . | . . . . Known Exits Taken . | . . . . Unknown Exits Taken 3 | 1 1 1 . Scrap Searched . | . . . . Spaces Dug . | . . . . Terrain Destroyed . | . . . . Melee . | . . . . Projectile . | . . . . AOE . | . . . . Terrain Rammed . | . . . . Walls Destroyed . | . . . . Machines Disabled . | . . . . Actions | -11 -10 -9 -9 --------- Run | Yrd Mat Mat Sto Total 474 | 19 111 8 336 Wait 7 | . . . 7 Move 421 | 17 111 8 285 Hop 6 | . . . 6 Pick Up 2 | . . . 2 Fast Attach 3 | . . . 3 Attach 2 | . . . 2 Detach . | . . . . Swap . | . . . . Drop . | . . . . Fire 26 | . . . 26 Melee 1 | . . . 1 Ram 6 | 2 . . 4 Kick . | . . . . Crush . | . . . . Escape Stasis . | . . . . Rewire . | . . . . Trap . | . . . . Miscellaneous . | . . . . Route ------- -11/Scrapyard -10/Materials -9/Materials -9/Storage History --------- Turn | Location | Event 2 | -11/Scrapyard | Met Revision 17 5 | -11/Scrapyard | Discovered new exit (range 12) 12 | -11/Scrapyard | Entered Materials 63 | -10/Materials | Discovered new exit (range 10) 68 | -10/Materials | Entered another Materials area 68 | -9/Materials | Evolved 2 slots: Utility x2 68 | -9/Materials | Discovered new exit (range 9) 73 | -9/Materials | Entered Storage 145 | -9/Storage | Core integrity fell below 50% 181 | -9/Storage | Core integrity fell below 20% 208 | -9/Storage | Destroyed 9 combat bots 245 | -9/Storage | Assisted by bots powering up and referring to "LRC-V3" 291 | -9/Storage | Destroyed by Y-45 Defender with Heavy Assault Rifle Last Messages --------------- >>Query(Mines) Deep underground areas newly excavated to provide access to raw materials for processing in the lower levels of [Complex 0b10]. Initially the mining tunnels only rarely experienced hostile [Derelict] activity, not enough to justify allocating significant resources to defense. This has recently changed with the [Infestation], for which the current response is to dispatch garrisoned Demolishers until a more permanent solution can be put in place. 00245_ One of them suddenly speaks: "Hello LRC-V3. What is your command?" 00246_ Acquired 14 matter. 00246_ K-01 Serf collects debris. 00267_ ALERT: Hostiles spotted, dispatching reinforcements to Terminal S004. 00269_ Acquired Mining Claw. 00273_ Flight Unit destroyed. 00290_ Sneak attack on A-02 Transporter. Map ----- +----------------------------------------------------+ | ?????????????????????????????????????????????????? | | ?????????????????????????????????????????????????? | | ?????????????????????????????????????????????????? | | ?????????????????????????????????????????????????? | | ?????????????????????????????????????????????????? | | ?????????????????????????????????????????????????? | | ?????????????????????????????????????????????????? | | ?????????????????????????????????????????????????? | | ?????????????????????????????????????????????????? | | ?????????????????????????????????????????????????? | | ?????????????????????????????????????????????????? | | ?????????????????????????????????????????????????? | | ???????????##+#####??????????????????????????????? | | ????????#### ??????????????????????????????? | | ????????? #??????????????????????????????? | | ?????????? #??????????????????????????????? | | ??????????? ##?????????????????????????????? | | ???????????? ##???#########????????????????? | | ?????????????? ????+ ?????????????????? | | ??????????????? ?????# """ #?????????????????? | | ???????????????##+#####?# """ #?????????????????? | | ???????????????# #?# """ #?????????????????? | | ???????????????# #?# #?????????????????? | | ???????????????# """ #?# #?????????????????? | | ???????????????# """ #####a##### ku#???????????? | | ???????????????# """ g @ w #???????????? | | ???????????????# Y ##### ################?????? | | ???????????????########???# #???????# #?????? | | ???????????????????###????# #?####### !#?????? | | ???????????????##### #????# #?# # !#?????? | | ???????????????# #????# #?# # #?????? | | ???????????????# #????# #?# T# #?????? | | ???????????????# #????# #?## ## /! ####### | | ???????????????# """ ###### #####/#####+##### | | ???????????????# """ + %% + | | ???????????????# """ ###### ####### ### """= | | ???????????????# #????#+#?????# #?# """! | | ???????????????+ """ #????????????+ #?# ""%[ | | ???????????????# """ #????????????#### #?#! = | | ???????????????# """ #??????????????#T #?# *! | | ???????????????# #??????????????## #?# | | ???????????????#? #???????????????# #######+ | | ?????????????????#####???????????????# % | | ?????????????????????????????????????# | | ?????????????????????????????????????# """ | | ?????????????????????????????????????# """ | | ????????????????????????????########### """ | | ????????????????????????????# # | | ??????????????????########### + | | ??????????????????# ## # """ | +----------------------------------------------------+ Best States ------------- Heat Dissipation 28 Energy Generation 5 Energy Capacity 100 Matter Stores 300 Matter Capacity 300 Sight Range 16 Terrain Scan Density 10 Evasion (%) 62 Item Schematics ----------------- None Robot Schematics ------------------ None Fabricated ------------ Nothing Repaired ---------- Nothing Alien Tech Used ----------------- None Achievements -------------- None Challenges ------------ None Game ------ Seed FireSeismicDevice Manual? 0 Play Time 00:04:34 Cumulative 26.7 hours Start 2025.10.11 @ 18:51:45 End 2025.10.11 @ 18:54:27 Sessions 1 Manual Loads 0 Difficulty Rogue Special Mode None Game No. 101 Rogue 101 Adventurer 0 Explorer 0 Win Type - Total 0 Types 0/0/0/0/0/0/0/0/0/0 Lore% 10 Gallery% 29 Achievement% 26 Wizard Run 0 Options --------- Layout 1 ASCII 0 Keyboard 1 Movement Vi Keybinds 0 Fullscreen 1 Font 16/SmallcapsGlow Map View 55x38 Zoom Use 0% Tactical HUD 1 Map Filters NONE Filters NONE Steam 1 RUN: 9cd17cc9-58c1-4565-8d3b-9e786cbdf8bc